Cogmind - Beta 15 @@@ ROGUE MODE // 2025.08.17 @ 00:06:07 Player: beans Result: Destroyed by G-47 Trooper with Particle Gun Performance ------------- Evolutions (2) 1000 Regions Visited (5) 1000 Robots Destroyed (82) 410 Value Destroyed (2503) 2503 Prototype IDs (6) 120 Alien Tech Used (0) 0 Bonus (564) 564 TOTAL SCORE: 5597 Bonus ------- High Alert Combat Kills 427 Follower Combat Kills 184 Friendly Fire -47 Cogmind --------- Core Integrity 0/550 Matter 220/300 Energy 58/100 System Corruption 0% Temperature Danger (487) Movement Core (100) Ox1 Location -8/Materials Parts ------- > --- POWER (1) -------- (None) > --- PROPULSION (2) --- (None) > --- UTILITY (4) ------ (None) > --- WEAPON (4) ------- Compact Ion Cannon > --- INVENTORY (5) ---- Plasma Cutter Peak State ------------ > --- POWER ------------ Heavy Ion Engine > --- PROPULSION ------- Carbon-fiber Leg VSS Leg > --- UTILITY ---------- Cryofiber Web High-capacity Matter Pod Compact Matter Pod Remote Shield > --- WEAPON ----------- Compact Ion Cannon Assault Cannon > --- INVENTORY -------- Compact Matter Pod Flak Cannon Rocket Launcher Rocket Launcher Plasma Cutter [Rating: 31] Favorites ----------- Power Heavy Ion Engine Engine Heavy Ion Engine Propulsion Aluminum Leg Treads Light Treads Leg Aluminum Leg Utility High-capacity Matter Pod Device Cryofiber Web Storage High-capacity Matter Pod Weapon Assault Cannon Energy Gun Particle Gun Energy Cannon Compact Ion Cannon Ballistic Gun Light Assault Rifle Ballistic Cannon Assault Cannon Launcher Rocket Launcher Special Weapon Plasma Cutter Build | -11 -10 -10 -9 -9 -8 ------- Run | Yrd Mat Min Mat Sto Mat Slots Evolved 4 | . . . 2 . 2 Power . | . . . . . . Propulsion . | . . . . . . Utility 2 | . . . 2 . . Weapon 2 | . . . . . 2 Parts Attached 31 | 5 2 5 6 11 2 Power 4 | 1 . 1 1 . 1 Engine 4 | 1 . 1 1 . 1 Core . | . . . . . . Reactor . | . . . . . . Propulsion 6 | 2 . 1 . 3 . Treads 2 | . . . . 2 . Leg 4 | 2 . 1 . 1 . Wheel . | . . . . . . Hover . | . . . . . . Flight . | . . . . . . Utility 7 | . 1 2 2 2 . Device 4 | . 1 1 1 1 . Storage 3 | . . 1 1 1 . Processor . | . . . . . . Hackware . | . . . . . . Protection . | . . . . . . Artifact . | . . . . . . Weapon 14 | 2 1 1 3 6 1 Energy Gun 3 | . 1 . 2 . . Energy Cannon 2 | . . . . 2 . Ballistic Gun 4 | 2 . . . 1 1 Ballistic Cannon 2 | . . 1 1 . . Launcher 2 | . . . . 2 . Special Weapon 1 | . . . . 1 . Impact Weapon . | . . . . . . Slashing Weapon . | . . . . . . Piercing Weapon . | . . . . . . Special Melee Weapon . | . . . . . . Unidentified Prototypes 6 | . . 1 3 2 . Parts Lost 22 | . . 3 . 15 4 Power 3 | . . 1 . . 2 Propulsion 6 | . . 1 . 5 . Utility 7 | . . 1 . 6 . Weapon 6 | . . . . 4 2 Highest Loss Streak 6 | . . 2 . 6 3 To Critical Strikes . | . . . . . . Average Backups 2 | . . 1 4 3 2 Power . | . . . . . . Propulsion . | . . . . . . Utility . | . . . 1 . . Weapon 1 | . . 1 2 2 . Tool/Special . | . . . . . . Unused Backups 1 | . . . 1 . . Power . | . . . . . . Propulsion . | . . . . . . Utility . | . . . . . . Weapon 1 | . . . 1 . . Tool/Special . | . . . . . . Average Slot Usage (%) 72 | . 72 81 88 74 19 Engine 10 | . 14 13 11 11 2 Leg 16 | . 24 23 22 12 . Device 11 | . 8 9 19 14 . Storage 10 | . . 6 13 15 . Energy Gun 5 | . 8 13 4 . . Energy Cannon 2 | . . . . 3 9 Ballistic Gun 5 | . 16 12 . 1 5 Ballistic Cannon 7 | . . 1 17 11 . Special Weapon 1 | . . . . 3 1 Peak Build Rating 31 | 5 9 21 30 31 14 Average Rating 15 | 3 7 8 24 21 9 On Entrance 11 | . 5 4 21 30 11 Naked Turns . | . . . . . . Heaviest Build 30 | 7 10 17 26 30 15 Greatest Support 40 | 20 20 22 22 40 3 Greatest Overweight (x) 7 | . 1 1 1 7 4 Average Overweight (x) . | . . . . 1 2 Largest Inventory Capacity 5 | 5 5 5 5 5 5 Average Capacity 5 | 5 5 5 5 5 5 Most Carried 5 | 2 4 5 5 5 3 Average Carried 2 | . . 1 4 3 2 Final Capacity 5 | 5 5 5 5 5 5 Final Carried 5 | . 4 5 5 2 1 Class Distribution -------------------- 100% | Mutant Dominant Class ---------------- Mutant | -10/Materials Mutant | -10/Mines Mutant | -9/Materials Mutant | -9/Storage Mutant | -8/Materials Resources | -11 -10 -10 -9 -9 -8 ----------- Run | Yrd Mat Min Mat Sto Mat Matter Collected 1651 | 181 114 218 350 732 56 Remotely . | . . . . . . Salvage Created 2451 | . 268 212 589 1095 287 Parts 143 | . 18 3 25 82 15 Haulers Intercepted 7 | . . . 4 3 . Recyclers Shooed 3 | . 1 . 2 . . Parts Field Recycled . | . . . . . . Retrieved Matter . | . . . . . . Parts Self-Destructed . | . . . . . . Prevented . | . . . . . . Kills | -11 -10 -10 -9 -9 -8 ------- Run | Yrd Mat Min Mat Sto Mat Combat Hostiles Destroyed 58 | . 4 3 9 37 5 Guns 10 | . 4 2 . 2 2 Cannons 30 | . . 1 9 18 2 AOE 17 | . . . . 17 . Classes Destroyed 13 | . 3 . 2 7 1 Worker 2 | . . . . 1 1 Builder 4 | . . . . 4 . Hauler 7 | . . . 4 3 . Recycler 4 | . 1 1 2 . . Mechanic 2 | . . . . 2 . Operator 1 | . . . . . 1 Watcher 4 | . 2 . . 2 . Swarmer 5 | . . . . 5 . Grunt 35 | . 4 2 8 17 4 Brawler 3 | . . . . 3 . Duelist 3 | . . . . 3 . Protector 3 | . . . . 3 . Sentry 8 | . . . 1 6 1 Best Kill Streak 12 | . 7 2 11 12 4 Combat Bots Only 11 | . 2 2 8 11 2 Max Kills in Single Turn 3 | . 1 1 1 3 1 Gunslinging . | . . . . . . Exploded 3 | . . . . 3 . Melee . | . . . . . . Uniques/NPCs Destroyed 1 | . . 1 . . . YI-UF0 (-10/Mines) Combat | -11 -10 -10 -9 -9 -8 -------- Run | Yrd Mat Min Mat Sto Mat Hostile Shots Fired 237 | . 15 20 21 122 59 Missed 74 | . 2 7 10 45 10 Hits 163 | . 13 13 11 77 49 Melee 15 | . . . . 15 . Projectile 148 | . 13 13 11 62 49 AOE 3 | . . 3 . . . Critical Strikes 4 | . . . 1 1 2 Damage Taken 2998 | . 183 296 123 1421 975 Core 1031 | . 29 47 24 375 556 Absorbed by Shields 108 | . . . . 108 . Core Remaining (%) 56 | 100 . 69 . . . Volleys Fired 177 | . 21 16 29 78 33 Largest 2 | . 2 2 2 2 2 Hottest 127 | . 85 102 102 127 127 Shots Fired 295 | . 39 31 58 121 46 Gun 92 | . 39 27 3 8 15 Cannon 182 | . . 4 55 92 31 Launcher 16 | . . . . 16 . Special 5 | . . . . 5 . Kinetic 206 | . 29 16 55 89 17 Thermal 73 | . 10 15 3 16 29 Explosive 16 | . . . . 16 . Electromagnetic . | . . . . . . Robot Hit Streak 13 | . 13 6 7 13 11 Robot Miss Streak 9 | . 3 5 6 9 4 Penetration Max . | . . . . . . Secondary Targets . | . . . . . . Shots Hit Robots 177 | . 24 20 38 70 25 Core Hits 159 | . 12 9 32 98 8 Critical Kills 1 | . . . . . 1 Critical Parts Destroyed . | . . . . . . Critical Strikes 5 | . 1 . 2 1 1 Burn 1 | . 1 . . . . Meltdown 1 | . . . . . 1 Blast 3 | . . . 2 1 . Melee Attacks . | . . . . . . Impact . | . . . . . . Slashing . | . . . . . . Piercing . | . . . . . . Sneak Attacks . | . . . . . . Combat Hostiles . | . . . . . . Follow-up Attacks . | . . . . . . Damage Inflicted 5823 | . 274 263 930 3697 659 Guns 688 | . 274 215 18 39 142 Cannons 3085 | . . 48 912 1608 517 Explosions 2039 | . . . . 2039 . Melee . | . . . . . . Ramming . | . . . . . . Kinetic 2810 | . 129 125 912 1454 190 Thermal 974 | . 145 138 18 204 469 Explosive 2039 | . . . . 2039 . Electromagnetic . | . . . . . . Impact . | . . . . . . Slashing . | . . . . . . Piercing . | . . . . . . Highest Corruption 4 | . . . . 4 . Average Corruption 3 | . . . . 3 . Corruption Purged . | . . . . . . Corruption Blocked . | . . . . . . Effects 3 | . . . . 3 . Matter Fused 1 | . . . . 1 . Heat Flow Errors 1 | . . . . 1 . Data Loss (minor) 1 | . . . . 1 . Overload Shots . | . . . . . . Overflow Damage 127 | . . . 4 78 45 Projectiles 112 | . . . 4 63 45 Explosions 15 | . . . . 15 . Melee . | . . . . . . Knockbacks 29 | . . . 13 15 1 Impact . | . . . . . . Kinetic 26 | . . . 13 12 1 Secondary 3 | . . . . 3 . Self-Inflicted Damage 274 | . . . . 188 86 Shots 6 | . . . . 5 1 Rammed . | . . . . . . Targets Rammed . | . . . . . . Kicked . | . . . . . . Crushed . | . . . . . . Highest Temperature 761 | . 68 160 . 300 761 Average Temperature 145 | . 22 44 . 111 270 Received Heat Transfer 1071 | . 108 75 87 324 477 Effects 11 | . . . . 1 10 Shutdowns 1 | . . . . . 1 Energy Bleed 2 | . . . . 1 1 Matter Decay 1 | . . . . . 1 Damage (minor) 2 | . . . . . 2 Damage (major) 3 | . . . . . 3 Damage (core) 2 | . . . . . 2 Siege Activations . | . . . . . . Martial Activations . | . . . . . . Shielding Activations . | . . . . . . Robots Disrupted . | . . . . . . Combat Hostiles . | . . . . . . Robots Corrupted . | . . . . . . Combat Hostiles . | . . . . . . Parts Fried . | . . . . . . Impact Corruptions . | . . . . . . Robots Melted 1 | . . . . . 1 Combat Hostiles 1 | . . . . . 1 Parts Melted 2 | . . . . 1 1 Heat Transferred 1702 | . 407 333 37 296 629 Parts Sabotaged . | . . . . . . Parts Stolen . | . . . . . . Parts Stripped . | . . . . . . Power Chain Reactions . | . . . . . . Alert | -11 -10 -10 -9 -9 -8 ------- Run | Yrd Mat Min Mat Sto Mat Maximum Alert Level 3 | . . . . 3 2 Low Security (%) 57 | 100 100 100 100 21 . Level 1 4 | . . . . 10 1 Level 2 20 | . . . . 25 98 Level 3 17 | . . . . 42 . Level 4 . | . . . . . . Level 5 . | . . . . . . High Security . | . . . . . . Max Security . | . . . . . . Peak Influence 1046 | . 82 30 172 1046 537 Initial 434 | . . 18 . 62 434 Average 297 | . 44 3 59 581 475 Influence Increases 2238 | . 119 70 249 1572 228 Destroy 0b10 Robot/C 1240 | . 80 40 180 840 100 Destroy 0b10 Robot/NC 135 | . 15 5 30 75 10 Destroy Leader 282 | . 24 10 38 180 30 Allied During Kill 49 | . . . . 49 . Disable Machine 210 | . . 15 . 150 45 Anti-Garrison Action 150 | . . . . 150 . Destroy Structure 172 | . . . 1 128 43 Influence Decreases 1736 | . 70 119 100 693 754 Entered New Map 712 | . . 31 . 87 594 Time Decay 774 | . 70 68 100 416 120 Lost Part 210 | . . 20 . 150 40 Lost Ally 40 | . . . . 40 . Squads Dispatched 11 | . 1 . 1 8 1 Investigation . | . . . . . . Extermination . | . . . . . . Reinforcement 5 | . 1 . 1 2 1 Assault 6 | . . . . 6 . Garrison . | . . . . . . Intercept . | . . . . . . Searches Triggered . | . . . . . . Construction Impeded 2 | . . . . 2 . Haulers Reinforced . | . . . . . . Active Scanning Responses . | . . . . . . Cargo Convoy Interrupts . | . . . . . . Stealth | -11 -10 -10 -9 -9 -8 --------- Run | Yrd Mat Min Mat Sto Mat Distress Signals 4 | . 1 . 1 1 1 Communications Jammed . | . . . . . . Distress Signals . | . . . . . . Times Spotted 89 | . 7 6 13 54 9 Peak Tracking Total 10 | . 3 3 4 10 4 Tactical Retreats . | . . . . . . Traps | -11 -10 -10 -9 -9 -8 ------- Run | Yrd Mat Min Mat Sto Mat Traps Triggered 3 | . 2 1 . . . Indirectly . | . . . . . . Trap Hack Attempts . | . . . . . . Triggered . | . . . . . . Disarmed . | . . . . . . Reprogrammed . | . . . . . . Reused . | . . . . . . Traps Extracted . | . . . . . . Installed . | . . . . . . Triggered . | . . . . . . Machines | -11 -10 -10 -9 -9 -8 ---------- Run | Yrd Mat Min Mat Sto Mat Machines Disabled 15 | . . 1 . 11 3 Max in Single Turn 3 | . . 1 . 1 3 Garrison Access 1 | . . . . 1 . Machines Repaired . | . . . . . . Machines Dismantled 7 | . . . . 7 . Machines Sabotaged . | . . . . . . Overloaded Fab Kills . | . . . . . . Hacking | -11 -10 -10 -9 -9 -8 --------- Run | Yrd Mat Min Mat Sto Mat Machines Accessed 1 | . . 1 . . . Terminals . | . . . . . . Fabricators . | . . . . . . Repair Stations . | . . . . . . Recycling Units . | . . . . . . Scanalyzers . | . . . . . . Garrison Access . | . . . . . . Total Hacks 1 | . . 1 . . . Successful 1 | . . 1 . . . Failed . | . . . . . . Catastrophic . | . . . . . . Database Lockouts . | . . . . . . Manual . | . . . . . . Terminals . | . . . . . . Fabricators . | . . . . . . Repair Stations . | . . . . . . Recycling Units . | . . . . . . Scanalyzers . | . . . . . . Garrison Access . | . . . . . . Terminal Hacks 1 | . . 1 . . . Open Door 1 | . . 1 . . . Fabricator Hacks . | . . . . . . Repair Station Hacks . | . . . . . . Recycling Unit Hacks . | . . . . . . Scanalyzer . | . . . . . . Garrison Access Hacks . | . . . . . . Unauthorized Hacks . | . . . . . . Terminals . | . . . . . . Fabricators . | . . . . . . Repair Stations . | . . . . . . Recycling Units . | . . . . . . Scanalyzers . | . . . . . . Garrison Access . | . . . . . . Data Cores Recovered . | . . . . . . Used . | . . . . . . Hacking Detections . | . . . . . . Full Trace Events . | . . . . . . Feedback Events . | . . . . . . Feedback Blocked . | . . . . . . Robot Schematics Acquired . | . . . . . . Robots Built . | . . . . . . Authchips . | . . . . . . Time . | . . . . . . Total Robot Build Rating . | . . . . . . Part Schematics Acquired . | . . . . . . Parts Built . | . . . . . . Authchips . | . . . . . . Time . | . . . . . . Total Part Build Rating . | . . . . . . Parts Repaired . | . . . . . . Time . | . . . . . . Parts Recycled . | . . . . . . Recycled Matter . | . . . . . . Retrieved Matter . | . . . . . . Retrieved Components . | . . . . . . Parts Scanalyzed . | . . . . . . Part Schematics Acquired . | . . . . . . Parts Damaged . | . . . . . . Bothacking | -11 -10 -10 -9 -9 -8 ------------ Run | Yrd Mat Min Mat Sto Mat Used RIF Installer . | . . . . . . Robots Hacked . | . . . . . . Non-combat . | . . . . . . Combat . | . . . . . . Robot Hacks Applied . | . . . . . . Relay Couplers Released 4 | . . . . 4 . Machine Destruction 4 | . . . . 4 . Fabnet Peak Effective % . | . . . . . . Robots Rewired . | . . . . . . Allies Hacked . | . . . . . . Hacks Repelled . | . . . . . . Allies | -11 -10 -10 -9 -9 -8 -------- Run | Yrd Mat Min Mat Sto Mat Total Allies 3 | . . 1 . 2 . Largest Group 2 | . . 1 . 2 . Highest-Rated Group 62 | . . 31 . 62 . Highest-Rated Ally 31 | . . 31 . 31 . Total Orders . | . . . . . . Ally Attacks 52 | . . . . 52 . Total Damage 687 | . . . . 687 . Kills 8 | . . . . 8 . Allies Corrupted . | . . . . . . Allies Melted . | . . . . . . Intel | -11 -10 -10 -9 -9 -8 ------- Run | Yrd Mat Min Mat Sto Mat Active Infowar (turns) 526 | . . 33 300 193 . Sensors 526 | . . 33 300 193 . Robot Analysis Total . | . . . . . . Derelict Logs Recovered 1 | . . 1 . . . Drone Launches . | . . . . . . Drone Recoveries . | . . . . . . Exploration | -11 -10 -10 -9 -9 -8 ------------- Run | Yrd Mat Min Mat Sto Mat Turns Passed 2469 | 53 156 700 300 1013 247 Spaces Moved 931 | 42 80 269 129 344 67 Core 194 | 10 10 . . 107 67 Treads 21 | . . . . 21 . Legs 716 | 32 70 269 129 216 . Wheels . | . . . . . . Hover . | . . . . . . Flight . | . . . . . . Fastest Speed 50 | 50 100 105 105 105 100 Average Speed 151 | 103 117 141 113 186 162 Slowest Speed 400 | 120 120 190 185 400 250 Overloaded Moves . | . . . . . . Propulsion Burnouts . | . . . . . . Robots Hopped . | . . . . . . Potential Cave-ins . | . . . . . . Cave-ins Triggered 1 | . . . . 1 . Exploration Rate (%) 23 | 3 25 42 11 51 9 Regions Visited 5 Branch Regions 2 Pre-discovered Areas 1 | . . 1 . . . Known Exits Taken . | . . . . . . Unknown Exits Taken 5 | 1 1 1 1 1 . Scrap Searched 1 | . . 1 . . . Spaces Dug . | . . . . . . Terrain Destroyed 193 | . . . 1 146 46 Melee . | . . . . . . Projectile 24 | . . . 1 14 9 AOE 169 | . . . . 132 37 Terrain Rammed . | . . . . . . Walls Destroyed . | . . . . . . Machines Disabled . | . . . . . . Actions | -11 -10 -10 -9 -9 -8 --------- Run | Yrd Mat Min Mat Sto Mat Total 1606 | 51 109 557 226 510 153 Wait 354 | . . 256 51 4 43 Move 926 | 41 79 268 128 343 67 Hop . | . . . . . . Pick Up 31 | 5 6 6 5 8 1 Fast Attach 9 | . . 4 1 4 . Attach 29 | 5 2 5 3 11 3 Detach 4 | . . . 1 2 1 Swap 21 | . . 1 4 16 . Drop 12 | . 1 1 4 6 . Fire 177 | . 21 16 29 78 33 Melee . | . . . . . . Ram . | . . . . . . Kick . | . . . . . . Crush . | . . . . . . Escape Stasis . | . . . . . . Rewire . | . . . . . . Trap . | . . . . . . Miscellaneous 43 | . . . . 38 5 Route ------- -11/Scrapyard -10/Materials -10/Mines -9/Materials -9/Storage -8/Materials History --------- Turn | Location | Event 4 | -11/Scrapyard | Discovered new exit (range 15) 54 | -11/Scrapyard | Entered Materials 185 | -10/Materials | Discovered new exit (range 15) 210 | -10/Materials | Entered Mines 213 | -10/Mines | Met a Derelict bent on vengeance 231 | -10/Mines | Received a Mining Laser from a helpful Derelict 310 | -10/Mines | Build established: Mutant 803 | -10/Mines | Met a Derelict who couldn't figure out how to use a Trap Extractor 854 | -10/Mines | Destroyed YI-UF0 859 | -10/Mines | Discovered new exit (range 15) 875 | -10/Mines | Found a damaged Exp. Sensor Array with a note attached 877 | -10/Mines | Found Prototype Device 877 | -10/Mines | Identified Exp. Sensor Array 910 | -10/Mines | Entered Materials 910 | -9/Materials | Evolved 2 slots: Utility x2 1068 | -9/Materials | Discovered new exit (range 13) 1172 | -9/Materials | Destroyed 8 combat bots 1210 | -9/Materials | Entered Storage 1231 | -9/Storage | Met a pair of Derelict thieves 1610 | -9/Storage | First assault squad dispatched 1769 | -9/Storage | Discovered new exit (range 12) 1844 | -9/Storage | Destroyed 11 combat bots 1852 | -9/Storage | Lost 5 parts (2n2u1w) 2047 | -9/Storage | Core integrity fell below 50% 2061 | -9/Storage | Crushed by falling debris 2063 | -9/Storage | Core integrity fell below 20% 2092 | -9/Storage | Lost 6 parts (2n2u2w) 2223 | -9/Storage | Entered Materials 2223 | -8/Materials | Evolved 2 slots: Weapon x2 2444 | -8/Materials | Core integrity fell below 50% 2462 | -8/Materials | Core integrity fell below 20% 2470 | -8/Materials | Destroyed by G-47 Trooper with Particle Gun Last Messages --------------- Assault Cannon destroyed. Critical hit (Burn: +37). Overheating: Matter decay (-53). Destroyed Particle Gun. G-47 Trooper destroyed. Overheating: Core damaged (-60). Power failure, Hvy. Ion Engine shutdown. K-01 Serf collects debris. Overheating: Com. Ion Cannon damaged (-12). Overheating: Com. Ion Cannon damaged (-7). Overheating: Hvy. Ion Engine damaged (-9). Hvy. Ion Engine destroyed. Overheating: Com. Ion Cannon damaged (-6). K-01 Serf collects debris. Overheating: Energy bleed (-10). K-01 Serf collects debris. R-06 Scavenger collects Hover Unit. Overheating: Com. Ion Cannon damaged (-5). Overheating: Core damaged (-66). R-06 Scavenger collects Hover Unit. Map ----- +----------------------------------------------------+ | ???????????# # " #??????????????? | | ???????????# " #??????????????? | | ???????????# "#???????????????? | | ???????????##### "#???????????????? | | ???????????????# * # "#???????????????? | | ???????????????# ==!# ""###???????????????? | | ???????????????# [%##########?????????????????? | | ???????????????# =#??????????????????????????? | | ???????????????# %[#??????????????????????????? | | ???????????????# #??????????????????????????? | | ?????????##????# #??????????????????????????? | | ?????##### ##### #??????????????????????????? | | ?????# *%! " #??????????????????????????? | | ?????# """ # ##?????????????????????????? | | ?????# """ %%# "#?????????????????????????? | | ?????# "S =;% #??????????????????????????? | | ?????# """ ] %= #??????????????????????????? | | ?????# "" ;g *#??????????????????????????? | | ?????# ; %###????????????????????????? | | ?????# # r" #????????????????????????? | | ?????########### ##########+######??????????? | | ???????????????# ??????????? | | ???????????????# ??????????? | | ???????????????# ??????????? | | ???????????????### #####+###?????????????? | | ?????????????????# @ #?????????????????????? | | ?????????????????#**!![[#?????????????????????? | | ?????????????????#**!![[#?????????????????????? | | ?????????????????########?????????????????????? | | ??????????????????????????????????????????????? | | ??????????????????????????????????????????????? | | ??????????????????????????????????????????????? | | ??????????????????????????????????????????????? | | ??????????????????????????????????????????????? | | ??????????????????????????????????????????????? | | ??????????????????????????????????????????????? | | ??????????????????????????????????????????????? | | ??????????????????????????????????????????????? | | ??????????????????????????????????????????????? | | ??????????????????????????????????????????????? | | ??????????????????????????????????????????????? | | ??????????????????????????????????????????????? | | ??????????????????????????????????????????????? | | ??????????????????????????????????????????????? | | ??????????????????????????????????????????????? | | ??????????????????????????????????????????????? | | ??????????????????????????????????????????????? | | ??????????????????????????????????????????????? | | ??????????????????????????????????????????????? | | ??????????????????????????????????????????????? | +----------------------------------------------------+ Best States ------------- Heat Dissipation 39 Energy Generation 14 Energy Capacity 280 Matter Stores 650 Matter Capacity 650 Sight Range 16 Robot Scan Range 20 Terrain Scan Density 10 Base Temperature (-) 100 Evasion (%) 55 Recoil Reduction 2 Item Schematics ----------------- None Robot Schematics ------------------ None Fabricated ------------ Nothing Repaired ---------- Nothing Alien Tech Used ----------------- None Achievements -------------- None Challenges ------------ None Game ------ Seed MiniAntigravCompactor Manual? 0 Play Time 00:19:44 Cumulative 92.0 hours Start 2025.08.16 @ 23:48:13 End 2025.08.17 @ 00:06:07 Sessions 1 Manual Loads 0 Difficulty Rogue Special Mode None Game No. 359 Rogue 359 Adventurer 0 Explorer 0 Win Type - Total 0 Types 0/0/0/0/0/0/0/0/0/0 Lore% 42 Gallery% 39 Achievement% 30 Wizard Run 0 Options --------- Layout 2 ASCII 0 Keyboard 0 Movement Mouse Keybinds 0 Fullscreen 2 Font 24/Smallcaps Map View 50x44 Zoom Use 0% Tactical HUD 0 Map Filters NONE Filters NONE Steam 1 RUN: 78e63c2d-832d-4915-a4c8-46e6778e620b